fUSD/lending_fUSD_20250312
["ID","MTS","AMOUNT","RATE_DAILY","PERIOD"]
[356002844,1741792240918,-1000.0,0.00028672,7]
[356002846,1741792240927,-1000.0,0.00028672,7]
[356002848,1741792240936,-1000.0,0.00028672,7]
[356002850,1741792240946,-1000.0,0.00028672,7]
[356002852,1741792240956,-151.0,0.00028672,7]
[356002854,1741792240965,-151.0,0.00028672,7]
[356002856,1741792240975,-151.0,0.00028672,7]
[356002858,1741792240985,-151.0,0.00028672,7]
[356002860,1741792240995,-151.0,0.00028672,7]
[356002862,1741792241005,-151.0,0.00028672,7]
[356002864,1741792241014,-151.0,0.00028672,7]
[356002866,1741792241024,-151.0,0.00028672,7]
[356002868,1741792241033,-151.0,0.00028672,7]
[356002870,1741792241044,-151.0,0.00028672,7]
[356002872,1741792241054,-151.0,0.00028672,7]
[356002874,1741792241064,-151.0,0.00028672,7]
[356002876,1741792241073,-151.0,0.00028672,7]
[356002878,1741792241084,-151.0,0.00028672,7]
[356002880,1741792241093,-151.0,0.00028672,7]
[356002882,1741792241103,-196.437021,0.00028672,7]
[356002884,1741792241112,-151.0,0.00028672,7]
[356002886,1741792241121,-151.0,0.00028672,7]
[356002888,1741792241130,-151.0,0.00028672,7]
[356002890,1741792241140,-180.352788,0.00028672,7]
[356002892,1741792241150,-1000.0,0.00028672,28]
[356002894,1741792241159,-1000.0,0.00028672,28]
[356002896,1741792241168,-1000.0,0.00028672,28]
[356002898,1741792241178,-1000.0,0.00028672,28]
[356002900,1741792241187,-1015.090462,0.00028672,28]
[356002902,1741792241197,-196.583312,0.00028672,7]
[356002904,1741792241207,-242.991163,0.00028672,7]
[356002906,1741792241216,-242.991163,0.00028672,7]
[356002908,1741792241227,-242.991163,0.00028672,7]
[356002910,1741792241237,-242.991163,0.00028672,7]
[356002912,1741792241246,-242.991163,0.00028672,7]
[356002914,1741792241256,-242.991163,0.00028672,7]
[356002916,1741792241265,-242.991163,0.00028672,7]
[356002918,1741792241274,-242.991163,0.00028672,7]
[356002920,1741792241283,-242.991163,0.00028672,7]
[356002922,1741792241293,-242.991163,0.00028672,7]
[356002924,1741792241302,-242.991163,0.00028672,7]
[356002926,1741792241311,-242.991163,0.00028672,7]
[356002928,1741792241320,-242.991163,0.00028672,7]
[356002930,1741792241333,-242.991163,0.00028672,7]
[356002932,1741792241342,-242.991163,0.00028672,7]
[356002934,1741792241352,-242.991165,0.00028672,7]
[356002936,1741792241361,-166.420837,0.00028672,7]
[356002938,1741792241371,-166.420837,0.00028672,7]
[356002940,1741792241381,-166.420837,0.00028672,7]
[356002942,1741792241390,-166.420837,0.00028672,7]
[356002944,1741792241400,-166.420837,0.00028672,7]
[356002946,1741792241410,-166.420837,0.00028672,7]
[356002948,1741792241419,-166.420837,0.00028672,7]
[356002950,1741792241429,-166.420837,0.00028672,7]
[356002952,1741792241439,-166.420837,0.00028672,7]
[356002954,1741792241450,-166.420837,0.00028672,7]
[356002956,1741792241460,-166.420837,0.00028672,7]
[356002958,1741792241469,-166.420837,0.00028672,7]
[356002960,1741792241479,-166.420837,0.00028672,7]
[356002962,1741792241488,-166.420837,0.00028672,7]
[356002964,1741792241498,-166.420837,0.00028672,7]
[356002966,1741792241507,-166.420837,0.00028672,7]
[356002968,1741792241516,-166.420837,0.00028672,7]
[356002970,1741792241526,-166.420845,0.00028672,7]
[356002972,1741792241536,-152.793737,0.00028672,7]
[356002974,1741792241545,-151.0,0.00028672,7]
[356002976,1741792241555,-151.0,0.00028672,7]
[356002978,1741792241564,-151.0,0.00028672,7]
[356002980,1741792241577,-151.0,0.00028672,7]
[356002982,1741792241586,-151.0,0.00028672,7]
[356002984,1741792241596,-151.0,0.00028672,7]
[356002985,1741792241605,-151.0,0.00028672,7]
[356002987,1741792241614,-151.0,0.00028672,7]
[356002989,1741792241623,-151.0,0.00028672,7]
[356002991,1741792241633,-151.0,0.00028672,7]
[356002993,1741792241642,-151.0,0.00028672,7]
[356002995,1741792241653,-151.0,0.00028672,7]
[356002997,1741792241662,-151.0,0.00028672,7]
[356002999,1741792241671,-151.0,0.00028672,7]
[356003001,1741792241680,-151.0,0.00028672,7]
[356003003,1741792241690,-151.0,0.00028672,7]
[356003005,1741792241699,-151.0,0.00028672,7]
[356003007,1741792241709,-163.010342,0.00028672,7]
[356003009,1741792241719,-151.0,0.00028672,7]
[356003011,1741792241728,-208.846592,0.00028672,7]
[356003013,1741792241737,-151.899661,0.00028672,7]
[356003015,1741792241746,-151.490364,0.00028672,7]
[356003017,1741792241759,-151.0,0.00028672,7]
[356003019,1741792241770,-151.0,0.00028672,7]
[356003021,1741792241779,-151.354864,0.00028672,7]
[356003024,1741792241789,-4354122.0684141,0.00028672,30]
[356003056,1741792242127,-1810849.17933,0.00028672,30]
[356003057,1741792242138,-1015236.0,0.00028672,30]
[356003058,1741792242149,-1231.85132041,0.00028672,30]
[356003059,1741792242161,-428.59140228,0.00028672,30]
[356003060,1741792242172,-540.49795588,0.00028672,30]
[356003064,1741792242231,-1114.0,9.923e-05,2]
[356003066,1741792242241,-25786.05520398,0.00028672,30]
[356003068,1741792242252,-383.12875825,0.00028672,30]
[356003072,1741792242278,-5450.527,0.00028672,30]
[356003189,1741792243133,-1114.0,0.00012923,2]
[356003191,1741792243150,-152.45984638,0.00013699,2]
[356003194,1741792243167,-1052.584,0.00015923,2]
[356003196,1741792243181,-21051.30272556,0.00028672,30]
[356003200,1741792243200,-1939.00371655,0.00028672,30]
[356003203,1741792243220,-845.926513,0.00028672,30]
[356003206,1741792243240,-510.0000005,0.00028672,30]
[356003209,1741792243262,-548.35263034,0.00028672,30]
[356003212,1741792243282,-3100.6336057,0.00028672,30]
[356003215,1741792243301,-2000.942007,0.00028672,30]
[356003218,1741792243320,-1454.24614478,0.00028672,30]
[356003222,1741792243351,-2079.24975989,0.00028672,30]
[356003225,1741792243373,-1158.8897727,0.00028672,30]
[356003228,1741792243387,-4012.5,0.00028672,30]
[356003231,1741792243405,-727.97543302,0.00028672,30]
[356003233,1741792243421,-404.495,0.00028672,30]
[356003237,1741792243439,-984.0,0.00028672,30]
[356003239,1741792243457,-534.82997,0.00028672,30]
[356003242,1741792243473,-53896.07615515,0.00028672,30]
[356003245,1741792243490,-19879.98076198,0.00028672,30]
[356003248,1741792243507,-606.84461065,0.00028672,30]
[356003250,1741792243525,-1840.57138119,0.00028672,30]
[356003253,1741792243541,-313980.28254924,0.00028672,30]
[356003256,1741792243558,-263.7075112,0.00028672,30]
[356003259,1741792243578,-1062.29555533,0.00028672,30]
[356003261,1741792243594,-2198.87610881,0.00028672,30]
[356003264,1741792243611,-985.1599067,0.00028672,30]
[356003267,1741792243628,-1333.79158089,0.00028672,30]
[356003271,1741792243644,-22220.87097642,0.00028672,30]
[356003274,1741792243660,-4315.16040471,0.00028672,30]
[356003277,1741792243677,-999.42965019,0.00028672,30]
[356003279,1741792243694,-3012.18350575,0.00028672,30]
[356003280,1741792243713,-18442.30823687,0.00028672,30]
[356003327,1741792244220,-5419.72166071,0.00028672,30]
[356003329,1741792244231,-282930.57124557,0.00028672,30]
[356003332,1741792244243,-23484.62335038,0.00028672,30]
[356003334,1741792244255,-179339.16912812,0.00028672,30]
[356003336,1741792244266,-467.4210005,0.00028672,30]
[356003338,1741792244277,-1742633.63610038,0.00028672,30]
[356003340,1741792244288,-289.15000193,0.00028672,30]
[356003343,1741792244299,-30704.53404464,0.00028672,30]
[356003345,1741792244311,-75394.80032126,0.00028672,30]
[356003347,1741792244322,-266.13549831,0.00028672,30]
[356003349,1741792244336,-594.97414237,0.00028672,30]
[356003357,1741792244402,-1000.0,0.00028672,30]
[356003359,1741792244414,-1705.5582732,0.00028672,30]
[356003391,1741792244692,-22277.69637783,0.00028672,30]
[356003404,1741792244828,-1995.6,0.00028672,30]
[356003406,1741792244839,-1049.41419005,0.00028672,30]
[356003408,1741792244850,-1685.77121904,0.00028672,30]
[356003410,1741792244861,-1007.52312096,0.00028672,30]
[356003440,1741792245186,-620.0999995,0.000285,5]
[356003441,1741792245198,-663.9000005,0.000285,5]
[356003442,1741792245207,-100.78345871,0.00028672,30]
[356003443,1741792245217,-2412.41005,0.00028672,30]
[356003444,1741792245228,-423.95581672,0.00028672,30]
[356003447,1741792245240,-5219.12795026,0.00028672,30]
[356003449,1741792245251,-507.53028692,0.00028672,30]
[356003451,1741792245262,-72853.000003,0.00028672,30]
[356003453,1741792245273,-121653.687696,0.00028672,30]
[356003456,1741792245284,-326.43,0.00028672,30]
[356003458,1741792245295,-485.44999993,0.00028672,30]
[356003460,1741792245306,-1044.08377648,0.00028672,30]
[356003462,1741792245318,-9601.30391237,0.00028672,30]
[356003464,1741792245331,-645833.20588366,0.00028672,30]
[356003491,1741792245586,-284.98797091,0.00028672,30]
[356003494,1741792245597,-515.811067,0.00028672,30]
[356003496,1741792245609,-475.33246739,0.00028672,30]
[356003498,1741792245620,-565.99524606,0.00028672,30]
[356003500,1741792245632,-1522561.38281861,0.00028672,30]
[356003502,1741792245641,-202.75837937,0.00028672,120]
[356003504,1741792245651,-1062.0,0.00028672,10]
[356003506,1741792245660,-1062.0,0.00028672,10]
[356003508,1741792245669,-1062.0,0.00028672,10]
[356003510,1741792245679,-1062.0,0.00028672,10]
[356003512,1741792245689,-1062.0,0.00028672,10]
[356003514,1741792245699,-1062.0,0.00028672,10]
[356003516,1741792245708,-1062.0,0.00028672,10]
[356003518,1741792245717,-1062.0,0.00028672,10]
[356003520,1741792245727,-1062.0,0.00028672,10]
[356003522,1741792245736,-1062.0,0.00028672,10]
[356003524,1741792245746,-1062.0,0.00028672,10]
[356003526,1741792245758,-1062.0,0.00028672,10]
[356003529,1741792245767,-1062.0,0.00028672,10]
[356003530,1741792245777,-1062.0,0.00028672,10]
[356003533,1741792245786,-1062.0,0.00028672,10]
[356003535,1741792245796,-1062.0,0.00028672,10]
[356003537,1741792245805,-1062.0,0.00028672,10]
[356003541,1741792245814,-1062.0,0.00028672,10]
[356003544,1741792245824,-1062.0,0.00028672,10]
[356003546,1741792245837,-1062.0,0.00028672,10]
[356003548,1741792245846,-1062.0,0.00028672,10]
[356003550,1741792245855,-1062.0,0.00028672,10]
[356003551,1741792245865,-1062.0,0.00028672,10]
[356003553,1741792245874,-1062.0,0.00028672,10]
[356003554,1741792245883,-1062.0,0.00028672,10]
[356003556,1741792245892,-1181.77840997,0.00028672,10]
[356003557,1741792245902,-158.3,0.00028672,2]
[356003559,1741792245911,-2012.73023711,0.00028672,120]
[356003560,1741792245921,-50000.0,0.00028672,34]
[356003562,1741792245930,-1925.31076367,0.00028672,16]
[356003563,1741792245940,-50000.0,0.00028672,30]
[356003565,1741792245949,-500.0,0.00028672,120]
[356003566,1741792245959,-508.98148479,0.00028672,120]
[356003568,1741792245968,-628.69529102,0.00028672,120]
[356003569,1741792245977,-500.0,0.00028672,120]
[356003571,1741792245987,-219.11496051,0.00028672,120]
[356003573,1741792245996,-647.01358924,0.00028672,120]
[356003574,1741792246006,-500.0,0.00028672,120]
[356003576,1741792246015,-502.754375,0.00028672,120]
[356003577,1741792246024,-500.19218956,0.00028672,120]
[356003579,1741792246033,-501.57043671,0.00028672,120]
[356003580,1741792246042,-500.0,0.00028672,120]
[356003582,1741792246052,-528.5786881,0.00028672,120]
[356003583,1741792246062,-500.0,0.00028672,120]
[356003585,1741792246072,-500.0,0.00028672,120]
[356003586,1741792246083,-500.0,0.00028672,120]
[356003588,1741792246092,-500.0,0.00028672,120]
[356003590,1741792246102,-500.20352945,0.00028672,120]
[356003591,1741792246111,-501.41735351,0.00028672,120]
[356003593,1741792246120,-500.71116997,0.00028672,120]
[356003594,1741792246129,-271.27220029,0.00028672,120]
[356003596,1741792246139,-500.0,0.00028672,120]
[356003598,1741792246148,-500.60032092,0.00028672,120]
[356003599,1741792246157,-500.0,0.00028672,120]
[356003601,1741792246166,-509.50180735,0.00028672,120]
[356003603,1741792246176,-500.0,0.00028672,120]
[356003604,1741792246185,-501.96177473,0.00028672,120]
[356003606,1741792246194,-500.0,0.00028672,120]
[356003607,1741792246204,-500.0,0.00028672,120]
[356003609,1741792246213,-501.48493139,0.00028672,120]
[356003611,1741792246222,-500.0,0.00028672,120]
[356003612,1741792246232,-500.87964547,0.00028672,120]
[356003614,1741792246241,-500.0,0.00028672,120]
[356003615,1741792246250,-279.41959436,0.00028672,120]
[356003617,1741792246259,-500.0,0.00028672,120]
[356003619,1741792246269,-500.49938296,0.00028672,120]
[356003620,1741792246279,-502.58855671,0.00028672,120]
[356003622,1741792246287,-153.42513692,0.00028672,120]
[356003624,1741792246297,-500.0,0.00028672,120]
[356003625,1741792246306,-500.0,0.00028672,120]
[356003627,1741792246315,-501.41813006,0.00028672,120]
[356003628,1741792246325,-500.0,0.00028672,120]
[356003630,1741792246336,-500.0,0.00028672,120]
[356003632,1741792246346,-500.0,0.00028672,120]
[356003633,1741792246355,-500.0,0.00028672,120]
[356003635,1741792246365,-500.0,0.00028672,120]
[356003637,1741792246375,-500.0,0.00028672,120]
[356003638,1741792246384,-505.33847166,0.00028672,120]
[356003640,1741792246393,-500.0,0.00028672,120]
[356003641,1741792246402,-500.76338538,0.00028672,120]
[356003643,1741792246411,-500.0,0.00028672,120]
[356003645,1741792246421,-500.0,0.00028672,120]
[356003646,1741792246430,-506.58763698,0.00028672,120]
[356003648,1741792246439,-500.0,0.00028672,120]
[356003649,1741792246449,-500.40112916,0.00028672,120]
[356003651,1741792246458,-500.0,0.00028672,120]
[356003653,1741792246469,-500.36837941,0.00028672,120]
[356003654,1741792246479,-500.0,0.00028672,120]
[356003656,1741792246488,-609.83133791,0.00028672,120]
[356003658,1741792246497,-502.12566911,0.00028672,120]
[356003659,1741792246507,-300.77992827,0.00028672,120]
[356003661,1741792246516,-500.43185136,0.00028672,120]
[356003663,1741792246525,-500.0,0.00028672,120]
[356003664,1741792246535,-501.35029656,0.00028672,120]
[356003667,1741792246544,-500.0,0.00028672,120]
[356003669,1741792246553,-500.0,0.00028672,120]
[356003673,1741792246563,-355.43934401,0.00028672,120]
[356003677,1741792246573,-500.0,0.00028672,16]
[356003680,1741792246584,-500.0,0.00028672,16]
[356003684,1741792246593,-595.3949342,0.00028672,16]
[356003687,1741792246603,-500.0,0.00028672,120]
[356003689,1741792246612,-501.791117,0.00028672,120]
[356003691,1741792246621,-500.0,0.00028672,120]
[356003692,1741792246630,-501.20095912,0.00028672,120]
[356003695,1741792246640,-500.0,0.00028672,120]
[356003698,1741792246649,-500.0,0.00028672,120]
[356003700,1741792246658,-500.0,0.00028672,120]
[356003703,1741792246668,-502.81115116,0.00028672,120]
[356003705,1741792246677,-500.0,0.00028672,120]
[356003708,1741792246686,-501.95472133,0.00028672,120]
[356003710,1741792246695,-500.0,0.00028672,120]
[356003712,1741792246704,-500.44307369,0.00028672,120]
[356003715,1741792246713,-500.0,0.00028672,120]
[356003717,1741792246723,-500.0,0.00028672,120]
[356003720,1741792246732,-500.0,0.00028672,120]
[356003723,1741792246744,-500.0,0.00028672,120]
[356003726,1741792246754,-500.0,0.00028672,120]
[356003729,1741792246763,-508.60272183,0.00028672,120]
[356003731,1741792246772,-500.59759917,0.00028672,120]
[356003733,1741792246783,-500.0,0.00028672,120]
[356003736,1741792246792,-500.0,0.00028672,120]
[356003737,1741792246804,-500.0,0.00028672,120]
[356003740,1741792246815,-500.0,0.00028672,120]
[356003742,1741792246826,-500.0,0.00028672,120]
[356003743,1741792246837,-500.0,0.00028672,120]
[356003744,1741792246846,-500.0,0.00028672,120]
[356003745,1741792246855,-500.0,0.00028672,120]
[356003746,1741792246864,-500.53560197,0.00028672,120]
[356003747,1741792246873,-500.0,0.00028672,120]
[356003748,1741792246882,-500.0,0.00028672,120]
[356003749,1741792246891,-500.0,0.00028672,120]
[356003750,1741792246900,-500.0,0.00028672,120]
[356003751,1741792246908,-500.0,0.00028672,120]
[356003752,1741792246917,-500.0,0.00028672,120]
[356003753,1741792246926,-500.0,0.00028672,120]
[356003754,1741792246935,-500.0,0.00028672,120]
[356003755,1741792246944,-500.78641148,0.00028672,120]
[356003756,1741792246953,-500.0,0.00028672,120]
[356003757,1741792246964,-496.27,0.00028672,120]
[356003758,1741792246973,-500.0,0.00028672,120]
[356003759,1741792246982,-500.0,0.00028672,120]
[356003760,1741792246991,-500.0,0.00028672,120]
[356003761,1741792247000,-505.23647426,0.00028672,120]
[356003762,1741792247009,-500.0,0.00028672,120]
[356003763,1741792247018,-502.1195731,0.00028672,120]
[356003765,1741792247028,-500.0,0.00028672,120]
[356003766,1741792247037,-500.0,0.00028672,120]
[356003768,1741792247047,-500.0,0.00028672,120]
[356003769,1741792247057,-500.0,0.00028672,120]
[356003771,1741792247066,-500.0,0.00028672,120]
[356003773,1741792247076,-500.0,0.00028672,120]
[356003775,1741792247087,-500.0,0.00028672,120]
[356003777,1741792247097,-502.48704498,0.00028672,120]
[356003779,1741792247107,-500.0,0.00028672,120]
[356003781,1741792247118,-500.0,0.00028672,120]
[356003783,1741792247127,-500.0,0.00028672,120]
[356003785,1741792247136,-500.0,0.00028672,120]
[356003787,1741792247145,-502.50586404,0.00028672,120]
[356003789,1741792247155,-500.0,0.00028672,120]
[356003791,1741792247164,-500.0,0.00028672,120]
[356003793,1741792247173,-622.8439104,0.00028672,120]
[356003795,1741792247183,-500.0,0.00028672,120]
[356003797,1741792247192,-354.66606444,0.00028672,120]
[356003799,1741792247202,-500.0,0.00028672,120]
[356003801,1741792247212,-501.62426859,0.00028672,120]
[356003803,1741792247222,-500.0,0.00028672,120]
[356003805,1741792247231,-500.0,0.00028672,120]
[356003807,1741792247241,-500.0,0.00028672,120]
[356003809,1741792247250,-500.0,0.00028672,120]
[356003811,1741792247259,-500.0,0.00028672,120]
[356003813,1741792247268,-500.0,0.00028672,120]
[356003815,1741792247277,-500.0,0.00028672,120]
[356003817,1741792247287,-500.0,0.00028672,120]
[356003819,1741792247296,-500.0,0.00028672,120]
[356003821,1741792247305,-500.0,0.00028672,120]
[356003823,1741792247315,-500.0,0.00028672,120]
[356003825,1741792247324,-500.0,0.00028672,120]
[356003827,1741792247335,-500.0,0.00028672,120]
[356003829,1741792247344,-500.0,0.00028672,120]
[356003831,1741792247353,-500.0,0.00028672,120]
[356003833,1741792247363,-221.7,0.00028672,120]
[356003847,1741792247495,-336143.44314837,0.00028672,30]
[356003860,1741792247620,-381265.38072502,0.00028672,30]
[356003862,1741792247632,-805.78275374,0.00028672,30]
[356003901,1741792247999,-16070.4,0.00028672,30]
[356003906,1741792248042,-311.53799366,0.00028672,30]
[356003908,1741792248054,-439.20107999,0.00028672,30]
[356003910,1741792248067,-1204.93817238,0.00028672,30]
[356003912,1741792248078,-149252.43398719,0.00028672,30]
[356003915,1741792248092,-980.88,0.00028672,30]
[356003917,1741792248103,-17920.24753646,0.00028672,30]
[356003919,1741792248114,-1627.5,0.00028672,30]
[356003921,1741792248126,-16244.5,0.00028672,30]
[356005349,1741793340751,-550.0,9e-05,2]
[356005350,1741793340783,-373.58908616,9e-05,2]
[356005371,1741793432269,-289.89542101,9e-05,2]
[356005372,1741793432323,-348.58528868,9e-05,2]
[356005373,1741793432333,-35.61604988,9.67e-05,2]
[356005374,1741793432493,-9153.03132924,9.67e-05,2]
[356005375,1741793432503,-3062.12162076,9.9e-05,2]
[356005495,1741793438113,-164.90676282,9.85e-05,2]
[356005496,1741793438124,-2096.44726318,9.9e-05,2]
[356005497,1741793438376,-1305.04456838,9.9e-05,2]
[356005680,1741793440350,-491.08843674,9.9e-05,2]
[356005682,1741793440362,-6911.09510315,9.9e-05,2]
[356005685,1741793440373,-66612.33705047,9.9e-05,2]
[356005687,1741793440385,-417.11913557,9.9e-05,2]
[356005703,1741793440536,-2992.80000004,9.9e-05,2]
[356005706,1741793440547,-4090.91701531,9.9e-05,2]
[356005708,1741793440558,-767.52712474,9.9e-05,2]
[356005710,1741793440570,-2004.01084872,9.9e-05,2]
[356005727,1741793440727,-1173.70891906,9.9e-05,2]
[356005730,1741793440739,-326.60090688,9.9e-05,2]
[356005732,1741793440751,-463.07499999,9.9e-05,2]
[356005734,1741793440763,-12105.14146131,9.9e-05,2]
[356005736,1741793440772,-31623.40635431,9.998e-05,2]
[356005738,1741793440783,-177.47757788,9.999e-05,2]
[356005740,1741793440792,-500.0,9.999e-05,2]
[356005742,1741793440802,-500.0,9.999e-05,2]
[356005744,1741793440811,-500.0,9.999e-05,2]
[356005746,1741793440821,-500.0,9.999e-05,2]
[356005748,1741793440830,-561.5195886,9.999e-05,2]
[356005750,1741793440840,-500.0,9.999e-05,2]
[356005751,1741793440849,-500.0,9.999e-05,2]
[356005752,1741793440859,-500.0,9.999e-05,2]
[356005753,1741793440869,-1694666.09111828,0.0001,2]
[356006011,1741793443275,-795.53474,0.0001,2]
[356006053,1741793443602,-103857.8626389,0.0001,2]
[356006055,1741793443614,-263.95605343,0.0001,2]
[356006057,1741793443626,-300.0,0.0001,2]
[356006059,1741793443638,-673.14206966,0.0001,2]
[356006061,1741793443650,-2193.62227818,0.0001,2]
[356006064,1741793443662,-876.21301426,0.0001,2]
[356006066,1741793443676,-340075.68654159,0.0001,2]
[356006068,1741793443687,-901.84078003,0.0001,2]
[356006072,1741793443717,-166288.92672698,0.0001,2]
[356006075,1741793443730,-1319.2,0.0001,2]
[356006077,1741793443742,-13832.82995373,0.0001,2]
[356006079,1741793443754,-481.47147626,0.0001,2]
[356006081,1741793443765,-13476.69381819,0.0001,2]
[356006087,1741793443806,-537.16417105,0.0001,2]
[356006090,1741793443817,-1243.33479485,0.0001,2]
[356006092,1741793443828,-12735.0044037,0.0001,2]
[356006342,1741793446238,-299.7897683,0.0001,2]
[356006344,1741793446250,-609.53823585,0.0001,2]
[356006346,1741793446261,-430.18684934,0.0001,2]
[356006348,1741793446272,-21042.87694452,0.0001,2]
[356006350,1741793446284,-457.33164235,0.0001,2]
[356006353,1741793446295,-1517.52127017,0.0001,2]
[356006355,1741793446306,-5040.56057484,0.0001,2]
[356006356,1741793446317,-294.40137595,0.0001,2]
[356006357,1741793446327,-663.02749647,0.0001,2]
[356006358,1741793446353,-506.28464956,0.0001,2]
[356006359,1741793446364,-553.56974129,0.0001,2]
[356006360,1741793446375,-29238.75906275,0.0001,2]
[356006361,1741793446386,-33368.43831084,0.0001,2]
[356006375,1741793446529,-133568.85984493,0.0001,2]
[356006377,1741793446540,-3701.92517562,0.0001,2]
[356009025,1741793490682,173.27,0.00027566,120]
[356009030,1741793862222,161.92,8.057e-05,2]
[356009036,1741794080848,200.45185774,8.017e-05,2]
[356009062,1741794515563,-359.59,9.172e-05,2]
[356009063,1741794515589,-250.0,9.297e-05,2]
[356009064,1741794515616,-1253.24386702,9.297e-05,2]
[356009083,1741794632451,-746.75613298,9.297e-05,2]
[356009084,1741794632460,-150.0,9.345e-05,2]
[356009085,1741794632470,-167.23,9.479e-05,2]
[356009086,1741794632480,-300.0,9.486e-05,2]
[356009087,1741794632490,-23900.0,9.487e-05,2]
[356009088,1741794632503,-921.15,9.5e-05,2]
[356009089,1741794632513,-183.0,9.533e-05,2]
[356009090,1741794632523,-150.0,9.562e-05,2]
[356009091,1741794632535,-500.0,9.591e-05,2]
[356009092,1741794632545,-400.0,9.6e-05,3]
[356009093,1741794632554,-550.0,9.625e-05,2]
[356009094,1741794632565,-800.0,9.7e-05,3]
[356009095,1741794632575,-1568.1875,9.8e-05,2]
[356009096,1741794632586,-3894.8916,9.8e-05,2]
[356009097,1741794632596,-1200.0,9.8e-05,3]
[356009098,1741794632605,-30564.11175928,9.88e-05,2]
[356009099,1741794632616,-161.47,9.889e-05,2]
[356009100,1741794632626,-3853.12724935,9.889e-05,2]
[356009101,1741794632635,-150.0,9.889e-05,2]
[356009102,1741794632645,-61917.86254975,9.898e-05,2]
[356009103,1741794632654,-13751.1957,9.899e-05,2]
[356009104,1741794632664,-517.8973,9.899e-05,2]
[356009105,1741794632673,-4744.2072,9.9e-05,2]
[356009106,1741794632683,-14354.863,9.9e-05,2]
[356009107,1741794632693,-1000.0,9.9e-05,2]
[356009108,1741794632702,-47992.9558,9.9e-05,2]
[356009109,1741794632712,-301.9312,9.9e-05,2]
[356009110,1741794632721,-265.8036,9.9e-05,2]
[356009111,1741794632731,-2685.14,9.9e-05,2]
[356009112,1741794632741,-187.957,9.9e-05,2]
[356009113,1741794632750,-1700.0,9.9e-05,3]
[356009114,1741794632760,-4930.96,9.9e-05,2]
[356009115,1741794632769,-325.2305,9.9e-05,2]
[356009116,1741794632779,-7362.65590653,9.91e-05,2]
[356009117,1741794632791,-893.59010789,9.91e-05,2]
[356009118,1741794632801,-500.0,9.999e-05,2]
[356009119,1741794632811,-500.0,9.999e-05,2]
[356009120,1741794632820,-545.6929533,9.999e-05,2]
[356009121,1741794632829,-300.0,9.999e-05,2]
[356009122,1741794632839,-318.45587658,9.999e-05,2]
[356009123,1741794632849,-300.0,9.999e-05,2]
[356009124,1741794632859,-150.0,9.999e-05,2]
[356009125,1741794632868,-150.0,9.999e-05,2]
[356009126,1741794632878,-5919.38271232,0.0001,2]
[356009127,1741794632890,-400.0,0.0001,2]
[356009128,1741794632902,-1517.7796849,0.0001,2]
[356009129,1741794632914,-4586.06303229,0.0001,2]
[356009130,1741794632926,-5012.5,0.0001,2]
[356009132,1741794633031,-759.58663573,0.0001,2]
[356009134,1741794633044,-524.92075,0.0001,2]
[356009136,1741794633057,-273.99999998,0.0001,2]
[356009143,1741794633173,-297.04785907,0.0001,2]
[356009144,1741794633185,-7050.52314997,0.0001,2]
[356009145,1741794633197,-253.83214093,0.0001,2]
[356009146,1741794633209,-6868.73643434,0.0001,2]
[356009147,1741794633220,-398.05286501,0.0001,2]
[356009148,1741794633233,-82202.99492999,0.0001,2]
[356009149,1741794633245,-6100.0,0.0001,2]
[356009166,1741794638402,-610.82773166,0.0001,2]
[356009167,1741794638414,-12073.74617446,0.0001,2]
[356009168,1741794638426,-6425.6,0.0001,2]
[356009169,1741794638470,-1713.56068351,0.0001,2]
[356009170,1741794638495,-3379.26028201,0.0001,2]
[356009171,1741794638507,-416.94616708,0.0001,2]
[356009382,1741794641077,-1018.78350001,0.0001,2]